Cogmind - Beta 16.1 @@@ ROGUE MODE // 2026.03.19 @ 18:42:50 Player: Ceorik Result: Destroyed by G-34 Mercenary with Small Laser Performance ------------- Evolutions (0) 0 Regions Visited (4) 800 Robots Destroyed (20) 100 Value Destroyed (271) 271 Prototype IDs (27) 540 Alien Tech Used (0) 0 Bonus (300) 300 TOTAL SCORE: 2011 Bonus ------- Aligned with FarCom 300 Cogmind --------- Core Integrity 0/250 Matter 251/300 Energy 125/125 System Corruption 0% Temperature Cool (6) Movement Rolling (90) Location -9/Mines Parts ------- > --- POWER (1) -------- Light Ion Engine > --- PROPULSION (2) --- Wheel Compact Wheel > --- UTILITY (2) ------ Large Storage Unit > --- WEAPON (2) ------- Small Laser Hammer > --- INVENTORY (15) --- Light Ion Engine Light Ion Engine Flexi-carbon Leg Flexi-carbon Leg Combat Airjet Large Storage Unit Large Matter Pod (150) Heavy EM Pulse Gun Heavy EM Pulse Gun Small Laser AWS/Autocannon Peak State ------------ > --- POWER ------------ Light Ion Engine > --- PROPULSION ------- Light Treads Wheel > --- UTILITY ---------- Large Storage Unit Light Armor Plating > --- WEAPON ----------- Small Laser Small Laser > --- INVENTORY -------- Light Ion Engine Light Ion Engine Flexi-carbon Leg Flexi-carbon Leg Wheel Compact Wheel Combat Airjet Large Storage Unit Large Matter Pod Heavy EM Pulse Gun Heavy EM Pulse Gun AWS/Autocannon Hammer [Rating: 12] Favorites ----------- Power Ion Engine Engine Ion Engine Propulsion Light Treads Treads Light Treads Wheel Wheel Utility Light Armor Plating Storage Large Storage Unit Protection Light Armor Plating Weapon Assault Rifle Energy Gun Small Laser Ballistic Gun Assault Rifle Ballistic Cannon Light Cannon Special Weapon Mining Laser Impact Weapon Hammer Build | -11 -10 -10 -10 -9 ------- Run | Yrd Mat Min Exi Min Slots Evolved . | . . . . . Power . | . . . . . Propulsion . | . . . . . Utility . | . . . . . Weapon . | . . . . . Parts Attached 25 | 7 8 9 . 1 Power 2 | 2 . . . . Engine 2 | 2 . . . . Core . | . . . . . Reactor . | . . . . . Propulsion 9 | 2 3 3 . 1 Treads 2 | 2 . . . . Leg . | . . . . . Wheel 7 | . 3 3 . 1 Hover . | . . . . . Flight . | . . . . . Utility 6 | 1 3 2 . . Device . | . . . . . Storage 3 | 1 2 . . . Processor . | . . . . . Hackware . | . . . . . Protection 3 | . 1 2 . . Artifact . | . . . . . Weapon 8 | 2 2 4 . . Energy Gun 2 | . . 2 . . Energy Cannon . | . . . . . Ballistic Gun 3 | 2 . 1 . . Ballistic Cannon 1 | . . 1 . . Launcher . | . . . . . Special Weapon 1 | . 1 . . . Impact Weapon 1 | . 1 . . . Slashing Weapon . | . . . . . Piercing Weapon . | . . . . . Special Melee Weapon . | . . . . . Unidentified Prototypes . | . . . . . Parts Lost 9 | . . 6 . 3 Power 1 | . . 1 . . Propulsion 3 | . . 1 . 2 Utility 3 | . . 2 . 1 Weapon 2 | . . 2 . . Highest Loss Streak 2 | . . 1 . 2 To Critical Strikes . | . . . . . Average Backups 10 | 3 9 13 13 12 Power 1 | . 1 1 2 2 Propulsion 3 | 1 2 3 5 4 Utility 1 | . 1 3 2 2 Weapon 4 | . 3 5 4 4 Tool/Special . | . . . . . Unused Backups 12 | . 1 1 . 10 Power 3 | . . 1 . 2 Propulsion 3 | . . . . 3 Utility 3 | . 1 . . 2 Weapon 3 | . . . . 3 Tool/Special . | . . . . . Average Slot Usage (%) 96 | . 93 99 100 97 Engine 13 | . 14 13 14 14 Treads 11 | . 14 8 14 2 Wheel 16 | . 13 19 14 24 Storage 14 | . 14 14 14 14 Protection 11 | . 7 13 14 14 Energy Gun 4 | . . . 28 16 Ballistic Gun 14 | . 18 17 . . Impact Weapon 7 | . 8 8 . 12 Peak Build Rating 12 | 6 8 9 12 12 Average Rating 7 | 5 7 8 10 11 On Entrance 7 | . 6 8 9 12 Avg Prop Armor Cover (%) 10 | . 11 9 10 . Naked Turns . | . . . . . Heaviest Build 52 | 14 52 32 28 29 Greatest Support 40 | 40 40 20 10 26 Greatest Overweight (x) 5 | 3 5 3 2 2 Average Overweight (x) 1 | . 2 1 2 1 Largest Inventory Capacity 20 | 8 20 15 15 15 Average Capacity 13 | 7 13 15 15 15 Most Carried 15 | 5 15 15 15 15 Average Carried 11 | 3 9 13 14 14 Final Capacity 15 | 8 15 15 15 15 Final Carried 15 | 5 15 14 15 13 Class Distribution -------------------- 100% | Mutant Dominant Class ---------------- Mutant | -10/Materials Mutant | -10/Mines Mutant | -10/Exiles Mutant | -9/Mines Resources | -11 -10 -10 -10 -9 ----------- Run | Yrd Mat Min Exi Min Matter Collected 858 | 329 154 326 . 49 Remotely . | . . . . . Salvage Created 693 | 193 147 304 . 49 Parts 24 | 11 8 5 . . Haulers Intercepted 1 | . 1 . . . Recyclers Shooed 1 | 1 . . . . Parts Field Recycled . | . . . . . Retrieved Matter . | . . . . . Parts Self-Destructed . | . . . . . Prevented . | . . . . . Parts Restored . | . . . . . Kills | -11 -10 -10 -10 -9 ------- Run | Yrd Mat Min Exi Min Combat Hostiles Destroyed 21 | . 7 13 . 1 Melee 6 | . 3 3 . . Guns 6 | . 2 4 . . Cannons 4 | . . 4 . . Classes Destroyed 7 | 2 2 3 . . Worker 1 | . . 1 . . Tunneler 4 | 4 . . . . Hauler 1 | . 1 . . . Recycler 2 | 1 . 1 . . Swarmer 9 | . 7 2 . . Grunt 3 | . . 2 . 1 Assembled 9 | . . 9 . . Best Kill Streak 4 | 4 4 4 . 1 Combat Bots Only 4 | . 4 4 . 1 Max Kills in Single Turn 1 | 1 1 1 . 1 Gunslinging . | . . . . . Exploded . | . . . . . Melee 1 | . 1 1 . . Uniques/NPCs Destroyed . | . . . . . Combat | -11 -10 -10 -10 -9 -------- Run | Yrd Mat Min Exi Min Hostile Shots Fired 169 | . 70 76 . 23 Missed 53 | . 26 22 . 5 Hits 116 | . 44 54 . 18 Melee 6 | . . 6 . . Projectile 110 | . 44 48 . 18 AOE 2 | . . 2 . . Critical Strikes 3 | . . 1 . 2 Part Disruptions 1 | . . 1 . . Damage Taken 1389 | . 366 783 . 240 Core 253 | . 81 98 . 74 Absorbed by Shields . | . . . . . Core Remaining (%) 100 | 100 . . . . Volleys Fired 55 | 10 6 37 . 2 Largest 2 | 2 2 2 . 2 Hottest 100 | 40 100 80 . 80 Shots Fired 81 | 20 10 47 . 4 Gun 53 | 20 8 21 . 4 Cannon 26 | . . 26 . . Launcher . | . . . . . Special 2 | . 2 . . . Kinetic 71 | 20 8 43 . . Thermal 10 | . 2 4 . 4 Explosive . | . . . . . Electromagnetic . | . . . . . Robot Hit Streak 8 | 8 6 7 . 1 Robot Miss Streak 3 | 1 2 3 . 3 Penetration Max . | . . . . . Secondary Targets 1 | . . 1 . . Max Gunslinging Chain 1 | . . 1 . . Shots Hit Robots 84 | 14 18 43 . 9 Core Hits 29 | 6 5 17 . 1 Critical Kills 1 | . 1 . . . Critical Parts Destroyed 4 | . 1 2 . 1 Critical Strikes 5 | . 2 2 . 1 Smash 5 | . 2 2 . 1 Melee Attacks 60 | . 26 24 . 10 Impact 60 | . 26 24 . 10 Slashing . | . . . . . Piercing . | . . . . . Sneak Attacks 5 | . 1 4 . . Combat Hostiles 1 | . . 1 . . Follow-up Attacks . | . . . . . Damage Inflicted 1751 | 171 475 889 . 216 Guns 374 | 171 43 148 . 12 Cannons 263 | . . 263 . . Explosions . | . . . . . Melee 1102 | . 432 466 . 204 Ramming 12 | . . 12 . . Kinetic 591 | 171 43 377 . . Thermal 46 | . . 34 . 12 Explosive . | . . . . . Electromagnetic . | . . . . . Impact 1102 | . 432 466 . 204 Slashing . | . . . . . Piercing . | . . . . . Highest Corruption . | . . . . . Average Corruption . | . . . . . Corruption Purged . | . . . . . Corruption Blocked . | . . . . . Overload Shots . | . . . . . Overflow Damage 183 | . 76 85 . 22 Projectiles 8 | . . 8 . . Explosions . | . . . . . Melee 175 | . 76 77 . 22 Knockbacks 7 | . 1 5 . 1 Impact 3 | . 1 1 . 1 Kinetic 3 | . . 3 . . Secondary 1 | . . 1 . . Self-Inflicted Damage 6 | . . 6 . . Shots . | . . . . . Rammed 1 | . . 1 . . Targets Rammed 1 | . . 1 . . Kicked . | . . . . . Crushed . | . . . . . Highest Temperature 81 | . 20 54 . 81 Average Temperature 26 | . 12 24 . 36 Received Heat Transfer 284 | . . 113 . 171 Siege Activations . | . . . . . Martial Activations . | . . . . . Shielding Activations . | . . . . . Robots Disrupted . | . . . . . Combat Hostiles . | . . . . . Robots Corrupted 6 | . 3 2 . 1 Combat Hostiles 5 | . 2 2 . 1 Parts Fried 6 | . 3 3 . . Impact Corruptions 10 | . 4 4 . 2 Robots Melted . | . . . . . Combat Hostiles . | . . . . . Parts Melted . | . . . . . Heat Transferred 100 | . . 75 . 25 Parts Sabotaged . | . . . . . Parts Stolen . | . . . . . Parts Stripped . | . . . . . Power Chain Reactions . | . . . . . Alert | -11 -10 -10 -10 -9 ------- Run | Yrd Mat Min Exi Min Maximum Alert Level . | . . . . . Low Security (%) 100 | 100 100 100 . 100 Level 1 . | . . . . . Level 2 . | . . . . . Level 3 . | . . . . . Level 4 . | . . . . . Level 5 . | . . . . . High Security . | . . . . . Max Security . | . . . . . Peak Influence 128 | 5 128 45 . 50 Initial . | . . . . . Average 22 | 1 41 4 . 24 Influence Increases 556 | 25 311 160 . 60 Destroy 0b10 Robot/C 240 | . 140 80 . 20 Destroy 0b10 Robot/NC 40 | 25 5 10 . . Destroy Leader 42 | . 22 10 . 10 Successful Hack 51 | . 51 . . . Disable Machine 15 | . . 15 . . Destroy Structure 3 | . 3 . . . Partial Spotted 15 | . 15 . . . Lose Combat Pursuer 150 | . 75 45 . 30 Influence Decreases 556 | 25 311 160 . 60 Time Decay 526 | 25 311 140 . 50 Lost Part 30 | . . 20 . 10 Squads Dispatched . | . . . . . Investigation . | . . . . . Extermination . | . . . . . Reinforcement . | . . . . . Assault . | . . . . . Garrison . | . . . . . Intercept . | . . . . . Searches Triggered . | . . . . . Construction Impeded . | . . . . . Haulers Reinforced . | . . . . . Active Scanning Responses . | . . . . . Cargo Convoy Interrupts . | . . . . . Stealth | -11 -10 -10 -10 -9 --------- Run | Yrd Mat Min Exi Min Distress Signals 1 | . 1 . . . Communications Jammed . | . . . . . Distress Signals . | . . . . . Times Spotted 51 | . 19 28 . 4 Peak Tracking Total 11 | . 7 11 . 3 Tactical Retreats 8 | . 3 4 . 1 Traps | -11 -10 -10 -10 -9 ------- Run | Yrd Mat Min Exi Min Traps Triggered . | . . . . . Indirectly . | . . . . . Trap Hack Attempts . | . . . . . Triggered . | . . . . . Disarmed . | . . . . . Reprogrammed . | . . . . . Reused . | . . . . . Traps Extracted . | . . . . . Installed . | . . . . . Triggered . | . . . . . Machines | -11 -10 -10 -10 -9 ---------- Run | Yrd Mat Min Exi Min Machines Disabled 1 | . . 1 . . Max in Single Turn 1 | . . 1 . . Machines Repaired . | . . . . . Machines Dismantled . | . . . . . Machines Sabotaged . | . . . . . Overloaded Fab Kills . | . . . . . Hacking | -11 -10 -10 -10 -9 --------- Run | Yrd Mat Min Exi Min Machines Accessed 11 | . 9 . 2 . Terminals 8 | . 8 . . . Fabricators . | . . . . . Repair Stations . | . . . . . Recycling Units 1 | . 1 . . . Scanalyzers . | . . . . . Garrison Access . | . . . . . Total Hacks 32 | . 30 . 2 . Successful 21 | . 19 . 2 . Failed 11 | . 11 . . . Catastrophic 1 | . 1 . . . Database Lockouts . | . . . . . Manual 16 | . 15 . 1 . Terminals 29 | . 29 . . . Fabricators . | . . . . . Repair Stations . | . . . . . Recycling Units 1 | . 1 . . . Scanalyzers . | . . . . . Garrison Access . | . . . . . Terminal Hacks 13 | . 11 . 2 . Record 1 | . . . 1 . Robot Analysis 3 | . 3 . . . Prototype ID Bank 2 | . 2 . . . Branch Access Points 1 | . 1 . . . Locate Traps 3 | . 3 . . . Hauler Manifests 1 | . 1 . . . Zone Layout 1 | . 1 . . . Proto ID Catalog 1 | . . . 1 . Fabricator Hacks . | . . . . . Repair Station Hacks . | . . . . . Recycling Unit Hacks 1 | . 1 . . . Report Inventory 1 | . 1 . . . Scanalyzer . | . . . . . Garrison Access Hacks . | . . . . . Unauthorized Hacks 7 | . 7 . . . Terminals 7 | . 7 . . . Botnet 7 | . 7 . . . Fabricators . | . . . . . Repair Stations . | . . . . . Recycling Units . | . . . . . Scanalyzers . | . . . . . Garrison Access . | . . . . . Data Cores Recovered . | . . . . . Used . | . . . . . Hacking Detections 7 | . 7 . . . Full Trace Events . | . . . . . Feedback Events . | . . . . . Feedback Blocked . | . . . . . Robot Schematics Acquired . | . . . . . Robots Built . | . . . . . Authchips . | . . . . . Time . | . . . . . Total Robot Build Rating . | . . . . . Part Schematics Acquired . | . . . . . Parts Built . | . . . . . Authchips . | . . . . . Time . | . . . . . Total Part Build Rating . | . . . . . Part Studies Acquired . | . . . . . Parts Repaired . | . . . . . Time . | . . . . . Parts Recycled . | . . . . . Recycled Matter . | . . . . . Retrieved Matter . | . . . . . Retrieved Components . | . . . . . Parts Scanalyzed . | . . . . . Part Schematics Acquired . | . . . . . Parts Damaged . | . . . . . Bothacking | -11 -10 -10 -10 -9 ------------ Run | Yrd Mat Min Exi Min Used RIF Installer . | . . . . . Robots Hacked . | . . . . . Non-combat . | . . . . . Combat . | . . . . . Robot Hacks Applied . | . . . . . Relay Couplers Released . | . . . . . Fabnet Peak Effective % . | . . . . . Robots Rewired . | . . . . . Allies Hacked . | . . . . . Hacks Repelled . | . . . . . Allies | -11 -10 -10 -10 -9 -------- Run | Yrd Mat Min Exi Min Total Allies . | . . . . . Largest Group . | . . . . . Highest-Rated Group . | . . . . . Highest-Rated Ally . | . . . . . Total Orders . | . . . . . Ally Attacks . | . . . . . Total Damage . | . . . . . Kills . | . . . . . Allies Corrupted . | . . . . . Allies Melted . | . . . . . Intel | -11 -10 -10 -10 -9 ------- Run | Yrd Mat Min Exi Min Active Infowar (turns) . | . . . . . Robot Analysis Total 3 | . 3 . . . Derelict Logs Recovered 1 | . . 1 . . Drone Launches . | . . . . . Drone Recoveries . | . . . . . Exploration | -11 -10 -10 -10 -9 ------------- Run | Yrd Mat Min Exi Min Turns Passed 2575 | 212 1066 890 273 134 Spaces Moved 1660 | 98 704 561 246 51 Core 12 | 12 . . . . Treads 114 | 86 19 9 . . Legs . | . . . . . Wheels 1534 | . 685 552 246 51 Hover . | . . . . . Flight . | . . . . . Fastest Speed 50 | 50 95 95 110 105 Average Speed 117 | 155 123 107 110 105 Slowest Speed 240 | 200 160 240 110 110 Overloaded Moves . | . . . . . Propulsion Burnouts . | . . . . . Robots Hopped . | . . . . . Potential Cave-ins . | . . . . . Cave-ins Triggered . | . . . . . Exploration Rate (%) 49 | 5 90 79 60 12 Regions Visited 4 Branch Regions 3 Pre-discovered Areas 1 | . . . 1 . Known Exits Taken 1 | . 1 . . . Unknown Exits Taken 3 | 1 . 1 1 . Scrap Searched . | . . . . . Spaces Dug 3 | . 3 . . . Terrain Destroyed 3 | . 3 . . . Melee 1 | . 1 . . . Projectile 2 | . 2 . . . AOE . | . . . . . Terrain Rammed . | . . . . . Walls Destroyed . | . . . . . Machines Disabled . | . . . . . Actions | -11 -10 -10 -10 -9 --------- Run | Yrd Mat Min Exi Min Total 2085 | 135 838 754 249 109 Wait 240 | 15 74 108 . 43 Move 1656 | 97 703 560 245 51 Hop . | . . . . . Pick Up 26 | 6 13 6 1 . Fast Attach 8 | 5 2 1 . . Attach 9 | 1 . 6 . 2 Detach . | . . . . . Swap 19 | 1 8 8 1 1 Drop 11 | . 6 3 2 . Fire 55 | 10 6 37 . 2 Melee 60 | . 26 24 . 10 Ram 1 | . . 1 . . Kick . | . . . . . Crush . | . . . . . Escape Stasis . | . . . . . Rewire . | . . . . . Trap . | . . . . . Miscellaneous . | . . . . . Route ------- -11/Scrapyard -10/Materials (discovered 3 exits: [*Mat x2] / *Min) -10/Mines (discovered 2 exits: [*Mat] / *Exi) -10/Exiles (discovered 2 exits: [*Min x2]) -9/Mines History --------- Turn | Location | Event 20 | -11/Scrapyard | Discovered new exit (range 15) 213 | -11/Scrapyard | Entered Materials 303 | -10/Materials | Build established: Mutant 359 | -10/Materials | Discovered new exit (range 8) 901 | -10/Materials | Discovered new exit (range 3) 948 | -10/Materials | Identified exit to Mines 1194 | -10/Materials | Discovered new exit (range 4) 1279 | -10/Materials | Entered Mines 1412 | -10/Mines | Learned Materials stockpile data 1532 | -10/Mines | Discovered new exit (range 9) 1617 | -10/Mines | Assembled infested the area 1622 | -10/Mines | Assisted by a Guerilla fighting off Assembled 1865 | -10/Mines | Core integrity fell below 50% 2163 | -10/Mines | Deemed a non-threat by the Exiles lab entrance 2164 | -10/Mines | Discovered new exit (range 5) 2169 | -10/Mines | Entered Exiles 2186 | -10/Exiles | Discovered new exit (range 15) 2204 | -10/Exiles | Met 8R-AWN 2222 | -10/Exiles | Met EX-HEX 2267 | -10/Exiles | Met EX-DEC 2270 | -10/Exiles | Learned location of Zion (-6) 2287 | -10/Exiles | Met EX-BIN 2303 | -10/Exiles | Aligned with FarCom system 2304 | -10/Exiles | Given EX-Vault access code 2329 | -10/Exiles | Opened EX-Vault 2340 | -10/Exiles | Found AWS/Autocannon 2362 | -10/Exiles | Warned to stay clear of 0b10 Research branches 2430 | -10/Exiles | Discovered new exit (range 14) 2442 | -10/Exiles | Left Exiles lab with AWS/Autocannon 2442 | -10/Exiles | Entered Mines 2445 | -9/Mines | Core integrity fell below 20% 2576 | -9/Mines | Destroyed by G-34 Mercenary with Small Laser Last Messages --------------- LOCATION=UNKNOWN GOAL=ESCAPE 02442_ Receiving FarCom transmissions... 02455_ Lgt. Treads destroyed. 02460_ Critical hit (Burn: +37). 02461_ G-47 Trooper suffers critical hit (Smash). 02461_ Destroyed Imp. Heat Sink. 02461_ G-47 Trooper system corrupted by crushing effect. 02466_ Critical hit (Burn: +37). 02472_ Destroyed Lgt. Nuclear Core. 02472_ G-47 Trooper system corrupted by crushing effect. 02472_ G-47 Trooper misfires. 02473_ G-47 Trooper system terminally corrupted. 02475_ Acquired 49 matter. 02563_ G-34 Mercenary knocked back. 02570_ Wheel destroyed. 02572_ Lgt. Armor Plating destroyed. Map ----- +----------------------------------------------------+ | ??????????????????????????????????????????? | | ??????????????????????????????????????????? | | ??????????????????????????????????????????? | | ??????????????????????????????????????????? | | ??????????????????????????????????????????? | | ??????????????????????????????????????????? | | ??????????????????????????????????????????? | | ??????????????????????????????????????????? | | ??????????????????????????????????????????? | | ??????????????????????????????????????????? | | ??????????????????????????????????????????? | | ??????????????????????????????????????????? | | ??????????????????????????????????????????? | | ????????????????????????????? ????????????? | | ????????????????????????????? ???????????? | | ????????????????????????????? ???????????? | | ???????????????????????????? #???????????? | | ???????????????????????????? #???????????? | | ???????????????????????????? #???????????? | | ???????????????????????????# #??? ??????? | | ????s?????????????????????# ???????? | | ?????????????????###?????? """ ????????? | | ????????s???????? #????## """ #???????? | | ???????ss????????# #???## """ #????????? | | ?????????????????#t#?### #?????????? | | ?????????????????#@### #???????????? | | ?????????????????#g #??????????????? | | ?????????????????### ##??????????????? | | ???????????????????# ##???????????????? | | ???????????????????## #????????????????? | | ??????????########### #????????????????? | | ??????????# ##????????????????? | | ??????????# #############?????????????????? | | ????####### #?????????????????????????????? | | ????# #?????????????????????????????? | | ????# """ ####??????????????????????????? | | ????# """ #??????????????????????????? | | ????# """ ## #??????????????????????????? | | ????# ## #??????????????????????????? | | ????# ## #??????????????????????????? | | ????# ## ?g???????????????????????? | | ????########## ???????????????????????? | | ?????????????##### ?????????????????????? | | ??????????????????? ???????????????????? | | ????????????????????# ?????????????????? | | ??????????????????????# ???????????????? | | ???????????????????????? ??????????????? | | ?????????????????????????? ???????????????? | | ??????????????????????????????????????????? | | ??????????????????????????????????????????? | +----------------------------------------------------+ Best States ------------- Heat Dissipation 25 Energy Generation 10 Energy Capacity 250 Matter Stores 300 Matter Capacity 300 Sight Range 16 Terrain Scan Density 10 Armor Coverage 150 Evasion (%) 41 Recoil Reduction 2 Item Schematics ----------------- None Robot Schematics ------------------ None Fabricated ------------ Nothing Repaired ---------- Nothing Studied --------- None Alien Tech Used ----------------- None Achievements -------------- None Challenges ------------ None Game ------ Seed CargoCobblerDriver Manual? 0 Play Time 00:19:32 Cumulative 130.8 hours Start 2026.03.19 @ 18:23:33 End 2026.03.19 @ 18:42:50 Sessions 2 Manual Loads 0 Difficulty Rogue Special Mode None Game No. 107 Rogue 107 Adventurer 0 Explorer 0 Win Type - Total 2 Types 2/0/0/0/0/0/0/0/0/0 Lore% 67 Gallery% 55 Achievement% 48 Wizard Run 0 Options --------- Layout 2 ASCII 0 Keyboard 0 Movement Mouse Keybinds 0 Fullscreen 1 Font 24/Smallcaps Map View 50x44 Zoom Use 0% Tactical HUD 1 Map Filters NONE Filters NONE Steam 1 RUN: 35ff484a-fdbd-4afd-88da-d7e3a5de6b74